bitfinex-derivatives/quotes_SOLF0:USTF0_20250323
["timestamp","ask_amount","ask_price","bid_price","bid_amount"]
[1742743185912,12.85372259,132.86,132.83,0.05443261]
[1742743186111,7.5292,132.84,132.83,0.05443261]
[1742743187509,20.38292259,132.84,132.83,0.05443261]
[1742743188021,7.5292,132.84,132.83,0.05443261]
[1742743192924,7.5318,132.8,132.77,248.48]
[1742743193318,7.5318,132.8,132.75,27.64]
[1742743193820,7.5318,132.8,132.75,35.1741]
[1742743194022,7.5321,132.79,132.76,0.05272063]
[1742743194320,7.58009678,132.79,132.76,0.05272063]
[1742743195127,7.5326,132.78,132.76,0.05272063]
[1742743195526,0.04799678,132.79,132.76,0.05272063]
[1742743195827,7.58039678,132.79,132.76,0.05272063]
[1742743196221,0.04799678,132.79,132.76,0.05272063]
[1742743196823,7.58009678,132.79,132.76,0.05272063]
[1742743198128,7.5327,132.78,132.76,0.05272063]
[1742743199926,7.5331,132.77,132.76,0.05272063]
[1742743202025,27.56,132.78,132.76,0.05272063]
[1742743202430,0.04799678,132.79,132.76,0.05272063]
[1742743202625,7.58029678,132.79,132.76,0.05272063]
[1742743202834,0.04799678,132.79,132.76,0.05272063]
[1742743203626,0.04799678,132.79,132.76,7.58612063]
[1742743203826,0.04799678,132.79,132.76,0.05272063]
[1742743204527,7.5327,132.78,132.76,0.05272063]
[1742743204732,0.04799678,132.79,132.76,0.05272063]
[1742743204928,0.04799678,132.79,132.76,8.28879054]
[1742743205433,7.58029678,132.79,132.76,8.28879054]
[1742743208636,7.5326,132.78,132.76,8.28879054]
[1742743209032,7.5326,132.78,132.76,0.05272063]
[1742743210133,15.81636669,132.79,132.76,0.05272063]
[1742743212543,8.28406669,132.79,132.76,0.05272063]
[1742743213549,15.81636669,132.79,132.76,0.05272063]
[1742743215852,7.58029678,132.79,132.76,15.82249054]
[1742743216047,7.58029678,132.79,132.76,8.28879054]
[1742743216447,0.04799678,132.79,132.76,15.82239054]
[1742743217145,0.04799678,132.79,132.76,8.28879054]
[1742743217559,7.58029678,132.79,132.76,8.28879054]
[1742743217749,0.04799678,132.79,132.76,0.05272063]
[1742743218647,7.5329,132.78,132.76,0.05272063]
[1742743218852,0.04799678,132.79,132.76,8.28879054]
[1742743219356,7.57999678,132.79,132.76,8.28879054]
[1742743219856,0.04799678,132.79,132.76,8.28879054]
[1742743220054,0.04799678,132.79,132.76,15.82239054]
[1742743222055,0.04799678,132.79,132.77,8.23606991]
[1742743223053,0.04799678,132.79,132.76,15.82239054]
[1742743223559,7.57999678,132.79,132.76,15.82239054]
[1742743225060,0.04799678,132.79,132.76,15.82239054]
[1742743225460,41.34100054,132.84,132.78,8.23606991]
[1742743225661,15.76606991,132.83,132.79,8.23606991]
[1742743225958,7.53,132.83,132.79,15.76776991]
[1742743226460,8.23606991,132.82,132.79,8.74]
[1742743226657,8.23606991,132.81,132.8,0.0556899]
[1742743227355,15.76696991,132.81,132.8,0.0556899]
[1742743228558,35.43606991,132.84,132.8,8.29175981]
[1742743228756,35.43606991,132.84,132.8,15.82285981]
[1742743229465,7.5297,132.83,132.8,8.29175981]
[1742743230566,10.48724813,132.86,132.82,8.23606991]
[1742743230867,10.48724813,132.86,132.84,8.23606991]
[1742743231165,10.48724813,132.86,132.83,35.56964567]
[1742743231859,18.72331804,132.86,132.83,27.33357576]
[1742743232059,8.23606991,132.84,132.83,0.05357576]
[1742743234270,15.76496991,132.85,132.83,0.05357576]
[1742743237372,8.23606991,132.85,132.83,0.05357576]
[1742743237774,27.28,132.87,132.83,8.28964567]
[1742743238068,35.51606991,132.87,132.83,8.28964567]
[1742743238971,8.23606991,132.86,132.83,0.05357576]
[1742743239773,8.23606991,132.86,132.83,8.28964567]
[1742743240072,35.51606991,132.87,132.83,8.28964567]
[1742743240271,35.51606991,132.87,132.84,7.5288]
[1742743242770,27.28,132.87,132.84,15.76506991]
[1742743243370,35.51606991,132.87,132.84,15.76506991]
[1742743244274,8.23606991,132.86,132.83,0.05357576]
[1742743244571,8.23606991,132.85,132.83,0.05357576]
[1742743245574,7.5292,132.84,132.83,0.05357576]
[1742743248675,15.76526991,132.84,132.83,0.05357576]
[1742743249069,42.90526991,132.84,132.83,0.05357576]
[1742743257276,7.5283,132.86,132.83,0.05357576]
[1742743257473,15.76436991,132.86,132.83,0.05357576]
[1742743257772,7.5286,132.85,132.83,0.05357576]
[1742743258177,15.76466991,132.85,132.83,0.05357576]
[1742743259279,7.5292,132.84,132.83,0.05357576]
[1742743260177,8.23606991,132.86,132.83,0.05357576]
[1742743260682,7.5289,132.85,132.83,0.05357576]
[1742743260878,8.23606991,132.85,132.83,0.05357576]
[1742743261074,35.31606991,132.84,132.83,0.05357576]
[1742743261279,27.08,132.84,132.83,0.05357576]
[1742743261673,35.31606991,132.86,132.83,0.05357576]
[1742743262078,41.34100054,132.89,132.84,8.23606991]
[1742743262277,42.82326991,132.88,132.84,15.76516991]
[1742743262979,41.34100054,132.89,132.86,8.23606991]
[1742743263280,41.34100054,132.89,132.87,8.23606991]
[1742743263680,41.34100054,132.89,132.88,8.23606991]
[1742743264183,41.34100054,132.89,132.88,15.76296991]
[1742743264782,41.34100054,132.89,132.88,8.23606991]
[1742743268886,7.5258,132.9,132.88,8.23606991]
[1742743269089,7.5263,132.89,132.88,8.23606991]
[1742743269581,7.526,132.9,132.88,8.23606991]
[1742743269990,8.23606991,132.93,132.89,35.31606991]
[1742743270489,7.5255,132.91,132.9,0.05203847]
[1742743270690,8.23606991,132.93,132.9,0.05203847]
[1742743271387,8.23606991,132.94,132.9,8.28810838]
[1742743272185,10.48724813,132.97,132.93,8.23606991]
[1742743272392,10.48724813,132.97,132.94,35.29606991]
[1742743272594,10.48724813,132.97,132.94,35.32985736]
[1742743272892,18.00934813,132.97,132.94,35.32985736]
[1742743273492,10.48724813,132.97,132.94,42.85325736]
[1742743273891,10.48724813,132.97,132.94,35.32985736]
[1742743274094,18.00914813,132.97,132.94,35.32985736]
[1742743274493,10.48724813,132.97,132.94,35.32985736]
[1742743274793,7.5224,132.96,132.94,27.09378745]
[1742743274993,8.23606991,132.95,132.94,0.05378745]
[1742743276493,15.75896991,132.95,132.94,0.05378745]
[1742743276993,7.5229,132.95,132.94,0.05378745]
[1742743278693,34.5429,132.95,132.94,0.05378745]
[1742743279093,34.5429,132.95,132.94,8.745e-05]
[1742743279094,47.38214359,132.95,132.94,8.745e-05]
[1742743284103,34.5429,132.95,132.94,8.745e-05]
[1742743284299,7.57404903,132.96,132.94,8.745e-05]
[1742743285805,7.5229,132.95,132.94,8.745e-05]
[1742743286197,0.05154903,132.96,132.94,8.745e-05]
[1742743286397,0.05154903,132.96,132.94,27.02008745]
[1742743286903,0.05154903,132.96,132.94,8.745e-05]
[1742743287106,0.05154903,132.96,132.94,27.02008745]
[1742743288809,7.57424903,132.96,132.94,27.02008745]
[1742743289007,7.57424903,132.96,132.94,8.745e-05]
[1742743289807,7.57424903,132.96,132.94,8.71008745]
[1742743291611,0.05154903,132.96,132.94,8.71008745]
[1742743298117,15.78802314,132.96,132.94,8.71008745]
[1742743298321,7.57414903,132.96,132.95,8.21387411]
[1742743298522,0.05154903,132.96,132.94,16.92396156]
[1742743298720,8.26542314,132.96,132.94,8.71008745]
[1742743300025,15.78812314,132.96,132.94,8.71008745]
[1742743300514,7.57424903,132.96,132.94,8.71008745]
[1742743300717,0.05154903,132.96,132.94,8.71008745]
[1742743305630,7.57404903,132.96,132.94,8.71008745]
[1742743311032,42.75677411,132.95,132.94,8.71008745]
[1742743311435,35.23387411,132.95,132.9,248.38]
[1742743311633,7.5261,132.9,132.87,8.21387411]
[1742743312644,7.58340744,132.9,132.87,8.26307298]
[1742743315245,7.5263,132.89,132.87,8.26307298]
[1742743315445,7.5263,132.89,132.87,0.04919887]
[1742743316241,7.5269,132.88,132.87,0.04919887]
[1742743316641,15.74077411,132.88,132.87,0.04919887]
[1742743317742,42.76077411,132.88,132.87,0.04919887]
[1742743318238,27.02,132.88,132.87,0.04919887]
[1742743320149,42.76077411,132.88,132.87,0.04919887]
[1742743321141,35.23387411,132.88,132.79,248.32]
[1742743321451,8.21387411,132.82,132.79,248.32]
[1742743322453,8.26314733,132.82,132.79,248.37509332]
[1742743322951,0.04927322,132.82,132.79,256.58896743]
[1742743323648,0.04927322,132.82,132.79,264.12096743]
[1742743323851,0.04927322,132.82,132.79,256.58896743]
[1742743324844,0.04927322,132.82,132.79,264.12086743]
[1742743325247,0.04927322,132.82,132.79,15.80086743]
[1742743326553,0.04927322,132.82,132.79,7.58699332]
[1742743326753,0.04927322,132.82,132.79,0.05509332]
[1742743327348,0.04927322,132.82,132.79,7.58699332]
[1742743327645,7.57957322,132.82,132.79,0.05509332]
[1742743328150,15.79344733,132.82,132.79,0.05509332]
[1742743328452,7.531,132.81,132.79,0.05509332]
[1742743328854,0.04927322,132.82,132.79,0.05509332]
[1742743329153,8.26314733,132.82,132.79,8.26896743]
[1742743329354,8.26314733,132.82,132.79,15.80076743]
[1742743329850,0.04927322,132.82,132.8,7.5314]
[1742743331665,0.04927322,132.82,132.81,8.21387411]
[1742743331956,27.02,132.87,132.81,8.21387411]
[1742743332151,27.02,132.87,132.85,8.21387411]
[1742743332854,260.14864813,132.92,132.86,8.21387411]
[1742743332855,15.73987411,132.9,132.86,8.21387411]
[1742743333055,42.77987411,132.9,132.86,8.21387411]
[1742743333360,0.05510704,132.89,132.87,0.05023227]
[1742743334757,7.58150704,132.89,132.87,0.05023227]
[1742743336456,15.74077411,132.88,132.87,0.05023227]
[1742743338052,0.05510704,132.89,132.87,0.05023227]
[1742743338053,15.79558115,132.89,132.87,0.05023227]
[1742743339555,0.05510704,132.89,132.87,0.05023227]
[1742743340862,0.05510704,132.89,132.87,15.79140638]
[1742743342461,0.05510704,132.89,132.87,0.05023227]
[1742743342657,8.21387411,132.88,132.87,0.05023227]
[1742743342962,42.76077411,132.88,132.87,0.05023227]
[1742743343963,34.5469,132.88,132.87,0.05023227]
[1742743344463,42.76077411,132.88,132.87,0.05023227]
[1742743345065,34.5469,132.88,132.87,0.05023227]
[1742743350268,42.76077411,132.88,132.87,0.05023227]
[1742743353167,34.5469,132.88,132.87,0.05023227]
[1742743353666,7.5269,132.88,132.87,0.05023227]
[1742743354565,15.74077411,132.88,132.87,0.05023227]
[1742743358068,7.5269,132.88,132.87,0.05023227]
[1742743358267,7.58170704,132.89,132.87,8.26410638]
[1742743358469,0.05510704,132.89,132.87,8.26410638]
[1742743360677,7.58150704,132.89,132.87,0.05023227]
[1742743361376,7.5269,132.88,132.87,0.05023227]
[1742743361878,15.74077411,132.88,132.87,0.05023227]
[1742743363981,42.76077411,132.88,132.87,0.05023227]
[1742743366378,34.5469,132.88,132.87,0.05023227]
[1742743367282,7.58160704,132.89,132.87,0.05023227]
[1742743367781,0.05510704,132.89,132.87,0.05023227]
[1742743368177,0.05510704,132.89,132.87,8.26410638]
[1742743368773,0.05510704,132.89,132.87,15.79110638]
[1742743368981,0.05510704,132.89,132.87,8.26410638]
[1742743369186,0.05510704,132.89,132.88,8.21387411]
[1742743369579,0.05510704,132.89,132.87,12.27990638]
[1742743370574,0.05510704,132.89,132.87,19.80700638]
[1742743371584,0.05510704,132.89,132.88,7.5269]
[1742743371780,0.05510704,132.89,132.88,15.74077411]
[1742743371982,41.80144513,132.96,132.88,15.73387411]
[1742743372285,41.80144513,132.96,132.93,15.73747411]
[1742743372584,41.80144513,132.96,132.93,35.25387411]
[1742743372778,50.01531924,132.96,132.93,27.04]
[1742743373177,57.53811924,132.96,132.93,27.09232022]
[1742743373378,50.01531924,132.96,132.93,27.09232022]
[1742743374089,57.53821924,132.96,132.93,27.09232022]
[1742743374589,47.08785796,132.96,132.93,27.09232022]
[1742743374789,15.73677411,132.96,132.93,27.09232022]
[1742743375485,15.73677411,132.96,132.93,0.05232022]
[1742743375689,8.21387411,132.94,132.93,0.05232022]
[1742743376489,15.73737411,132.94,132.93,0.05232022]
[1742743378092,7.5235,132.94,132.93,0.05232022]
[1742743379188,8.21387411,132.97,132.93,8.26619433]
[1742743379391,8.21387411,132.94,132.93,0.05232022]
[1742743379585,8.21387411,132.94,132.91,8.21387411]
[1742743379792,8.21387411,132.94,132.89,27.02]
[1742743379793,8.21387411,132.93,132.89,8.21387411]
[1742743379993,8.21387411,132.93,132.91,0.04943598]
[1742743380690,7.5251,132.92,132.91,0.04943598]
[1742743381696,15.73897411,132.92,132.91,0.04943598]
[1742743382889,7.5251,132.92,132.91,0.04943598]
[1742743383395,15.73897411,132.92,132.91,0.04943598]
[1742743384094,15.73897411,132.92,132.91,3.598e-05]
[1742743386904,7.5278,132.87,132.84,8.21387411]
[1742743387802,8.21387411,132.91,132.86,8.21387411]
[1742743388105,35.23387411,132.92,132.87,8.15838803]
[1742743388509,7.5252,132.91,132.87,15.68558803]
[1742743389007,7.5252,132.91,132.88,0.04832243]
[1742743389199,7.5258,132.9,132.88,0.04832243]
[1742743390105,7.5263,132.89,132.88,0.04832243]
[1742743391508,34.5463,132.89,132.88,0.04832243]
[1742743391898,169.38315613,132.99,132.88,0.04832243]
[1742743392108,8.21387411,132.96,132.91,8.21387411]
[1742743392305,8.21387411,132.96,132.92,8.26769249]
[1742743392497,15.73687411,132.95,132.91,8.21387411]
[1742743392698,15.73687411,132.95,132.93,0.0575015]
[1742743392898,8.21387411,132.95,132.93,0.0575015]
[1742743393099,15.73707411,132.95,132.93,0.0575015]
[1742743393509,7.5235,132.94,132.93,0.0575015]
[1742743393911,15.73737411,132.94,132.93,0.0575015]
[1742743397201,7.5258,132.9,132.87,256.55387411]
[1742743397405,7.5258,132.9,132.86,15.74157411]
[1742743398512,0.04824137,132.89,132.87,7.5802998]
[1742743398807,0.04824137,132.89,132.87,15.79417391]
[1742743399015,0.04824137,132.89,132.87,7.5802998]
[1742743401909,7.57464137,132.89,132.87,7.5802998]
[1742743402716,7.57464137,132.89,132.87,0.0528998]
[1742743403015,0.04824137,132.89,132.87,0.0528998]
[1742743403417,0.04824137,132.89,132.87,7.5801998]
[1742743405319,0.04824137,132.89,132.88,7.5269]
[1742743408817,0.04824137,132.89,132.87,2.1540998]
[1742743409316,7.57484137,132.89,132.87,2.1540998]
[1742743409717,7.5269,132.88,132.87,0.0528998]
[1742743417224,0.04824137,132.89,132.87,0.0528998]
[1742743417529,0.04824137,132.89,132.87,7.5801998]
[1742743418026,0.04824137,132.89,132.87,0.0528998]
[1742743418231,150.34990511,132.95,132.87,27.0928998]
[1742743418426,138.24839028,132.95,132.87,27.04]
[1742743418729,7.5255,132.91,132.87,34.567]
[1742743419323,7.5255,132.91,132.88,7.57496516]
[1742743420831,7.5255,132.91,132.88,15.79557039]
[1742743424137,7.5259,132.9,132.88,0.04806516]
[1742743425634,7.5263,132.89,132.88,0.04806516]
[1742743426135,7.526,132.9,132.88,0.04806516]
[1742743426935,7.5263,132.89,132.88,0.04806516]
[1742743448667,35.32060523,132.93,132.88,8.26867039]
[1742743448868,35.32060523,132.93,132.89,8.22060523]
[1742743449061,35.32060523,132.93,132.88,15.79527039]
[1742743449260,8.22060523,132.93,132.89,27.02]
[1742743451762,7.5255,132.91,132.89,27.02]
[1742743453171,7.5255,132.91,132.89,42.76690523]
[1742743454474,7.5249,132.92,132.9,8.22060523]
[1742743454674,8.22060523,132.94,132.9,8.22060523]
[1742743454872,8.22060523,132.94,132.9,8.27500678]
[1742743455173,7.5243,132.93,132.9,15.80030678]
[1742743456874,7.5243,132.93,132.91,7.5252]
[1742743457176,7.5243,132.93,132.9,8.27500678]
[1742743457677,7.5243,132.93,132.9,15.80050678]
[1742743460776,7.5243,132.93,132.91,7.5252]
[1742743461277,7.5243,132.93,132.9,15.80050678]
[1742743463070,15.74440523,132.94,132.91,7.5249]
[1742743463282,7.5238,132.94,132.91,15.74550523]
[1742743465075,12.38590523,132.96,132.92,15.74520523]
[1742743465376,7.5235,132.94,132.93,0.05089498]
[1742743466176,7.523,132.95,132.93,0.05089498]
[1742743466768,7.5227,132.96,132.93,15.79520021]
[1742743466971,8.22060523,132.97,132.93,8.27150021]
[1742743467471,7.5226,132.96,132.93,8.27150021]
[1742743468472,7.5226,132.96,132.94,7.5235]
[1742743468669,7.5226,132.96,132.94,8.22060523]
[1742743469679,7.5229,132.95,132.94,8.22060523]
[1742743469976,7.5229,132.95,132.93,8.27150021]
[1742743471277,7.5235,132.94,132.93,8.27150021]
[1742743472282,7.5232,132.95,132.93,15.79550021]
[1742743472483,7.5232,132.95,132.94,8.22060523]
[1742743478183,7.5235,132.94,132.93,8.27150021]
[1742743478388,7.5235,132.94,132.93,0.05089498]
[1742743489092,7.5263,132.89,132.88,1.9845]
[1742743489296,8.22060523,132.9,132.87,256.54060523]
[1742743489504,8.22060523,132.91,132.87,256.54060523]
[1742743489795,7.5267,132.89,132.88,8.22060523]
[1742743490493,7.5269,132.88,132.87,256.58905775]
[1742743490795,7.5269,132.88,132.87,248.36845252]
[1742743493310,7.5266,132.89,132.87,248.36845252]
[1742743494999,0.0544275,132.9,132.87,248.36845252]
[1742743495599,7.5266,132.89,132.87,248.36845252]
[1742743496101,7.5269,132.88,132.87,248.36845252]
[1742743496803,7.5265,132.89,132.87,248.36845252]
[1742743497614,7.5265,132.89,132.87,256.58905775]
[1742743500115,0.0544275,132.9,132.87,256.58905775]
[1742743500308,8.27503273,132.9,132.87,248.36845252]
[1742743500807,7.5263,132.89,132.87,248.36845252]
[1742743501007,8.27503273,132.9,132.87,248.36845252]
[1742743501307,7.5266,132.89,132.87,248.36845252]
[1742743501707,8.27503273,132.9,132.87,248.36845252]
[1742743501908,7.5264,132.89,132.87,248.36845252]
[1742743502103,8.27503273,132.9,132.87,248.36845252]
[1742743503507,7.5269,132.88,132.87,248.36845252]
[1742743505509,7.5266,132.89,132.87,248.36845252]
[1742743507204,7.5269,132.88,132.87,0.04845252]
[1742743507406,15.74750523,132.88,132.87,0.04845252]
[1742743508407,7.5269,132.88,132.87,0.04845252]
[1742743508810,15.74750523,132.88,132.87,0.04845252]
[1742743514705,42.74750523,132.88,132.87,5.252e-05]
[1742743522634,42.74750523,132.88,132.82,275.32]
[1742743522635,7.5296,132.84,132.82,275.32]
[1742743523029,7.5296,132.84,132.82,283.54060523]
[1742743523733,7.58619312,132.84,132.82,283.59290837]
[1742743524330,7.58619312,132.84,132.82,291.12310837]
[1742743524525,0.05659312,132.84,132.83,8.22060523]
[1742743526028,7.58579312,132.84,132.82,283.59290837]
[1742743528428,7.5297,132.83,132.82,256.59290837]
[1742743528636,7.5297,132.83,132.82,248.37230314]
[1742743529137,15.75030523,132.83,132.82,248.37230314]
[1742743529723,15.75030523,132.83,132.82,0.05230314]
[1742743532837,15.75030523,132.83,132.82,3.14e-06]
[1742743536347,7.58599312,132.84,132.82,3.14e-06]
[1742743536539,0.05659312,132.84,132.82,3.14e-06]
[1742743537535,8.22060523,132.83,132.82,3.14e-06]
[1742743537941,8.27719835,132.84,132.82,3.14e-06]
[1742743538146,7.5297,132.83,132.82,3.14e-06]
[1742743539545,15.75030523,132.83,132.82,3.14e-06]
[1742743547547,7.5326,132.78,132.77,275.42]
[1742743547849,119.0935922,132.89,132.77,256.62060523]
[1742743548046,17.98686292,132.88,132.86,8.22060523]
[1742743548249,10.45976292,132.88,132.86,8.22060523]
[1742743548945,10.51097001,132.88,132.86,8.27833351]
[1742743550752,0.05120709,132.88,132.86,8.27833351]
[1742743553157,0.05120709,132.88,132.86,0.05772828]
[1742743553751,0.05120709,132.88,132.86,7.58572828]
[1742743556856,7.57820709,132.88,132.86,0.05772828]
[1742743564061,7.5275,132.87,132.86,0.05772828]
[1742743564251,0.05120709,132.88,132.86,0.05772828]
[1742743565163,7.57860709,132.88,132.86,0.05772828]
[1742743566262,7.5275,132.87,132.86,0.05772828]
[1742743575661,7.57840709,132.88,132.86,8.27833351]
[1742743575867,7.57840709,132.88,132.87,8.22060523]
[1742743576066,0.05120709,132.88,132.86,35.27833351]
[1742743576264,0.05120709,132.88,132.86,42.80603351]
[1742743576869,7.57840709,132.88,132.86,35.27833351]
[1742743577472,7.57840709,132.88,132.86,42.80623351]
[1742743578671,0.05120709,132.88,132.86,42.80623351]
[1742743579573,7.57810709,132.88,132.86,42.80623351]
[1742743581369,0.05120709,132.88,132.87,8.22060523]
[1742743581574,8.22060523,132.92,132.87,8.22060523]
[1742743581774,8.22060523,132.91,132.87,8.22060523]
[1742743582068,27.0,132.94,132.87,15.74780523]
[1742743582069,7.526,132.9,132.87,15.74780523]
[1742743582476,7.526,132.9,132.87,8.22060523]
[1742743582673,7.57914761,132.9,132.87,8.27399115]
[1742743582873,7.57914761,132.9,132.87,15.80119115]
[1742743586473,0.05314761,132.9,132.88,7.5268]
[1742743587467,7.57894761,132.9,132.88,7.5268]
[1742743587773,7.57894761,132.9,132.89,27.0]
[1742743588276,0.05314761,132.9,132.89,27.0]
[1742743588778,7.57894761,132.9,132.89,27.0]
[1742743592878,7.57894761,132.9,132.87,15.80119115]
[1742743593185,7.5266,132.89,132.88,27.0]
[1742743595681,7.5269,132.88,132.87,0.05338592]
[1742743603988,15.74750523,132.88,132.87,0.05338592]
[1742743609498,42.74750523,132.88,132.87,0.05338592]
[1742743620412,7.5269,132.88,132.87,0.05338592]
[1742743622219,15.74750523,132.88,132.87,0.05338592]
[1742743623210,7.5269,132.88,132.87,0.05338592]
[1742743627619,15.74750523,132.88,132.87,0.05338592]
[1742743628510,7.5269,132.88,132.87,0.05338592]
[1742743639326,15.74750523,132.88,132.87,0.05338592]
[1742743639522,15.74750523,132.88,132.87,8.592e-05]
[1742743648830,7.5269,132.88,132.87,8.592e-05]
[1742743653727,42.72750523,132.88,132.87,8.592e-05]
[1742743657337,48.36361103,132.88,132.75,39.56988094]
[1742743657538,8.22060523,132.79,132.75,43.55028094]
[1742743658136,35.20060523,132.8,132.77,8.22060523]
[1742743658338,0.05694957,132.78,132.77,8.22060523]
[1742743659340,0.05694957,132.78,132.76,35.24967075]
[1742743659540,0.05694957,132.78,132.77,8.22060523]
[1742743659844,7.58954957,132.78,132.77,8.22060523]
[1742743660741,7.5331,132.77,132.76,0.04906552]
[1742743660943,15.75370523,132.77,132.76,0.04906552]
[1742743663952,7.5354,132.73,132.72,279.9216]
[1742743665049,15.75570523,132.74,132.72,279.9216]
[1742743665253,0.05233191,132.74,132.72,279.9216]
[1742743665553,0.05233191,132.74,132.72,4.2016]
[1742743666656,0.05233191,132.74,132.71,0.0571554]
[1742743666657,8.22060523,132.73,132.71,0.0571554]
[1742743666860,8.22060523,132.72,132.71,0.0571554]
[1742743668158,15.75660523,132.72,132.71,0.0571554]
[1742743670963,8.22060523,132.73,132.71,0.0571554]
[1742743671261,8.27293714,132.74,132.71,7.5933554]
[1742743671569,15.80803714,132.74,132.71,7.5933554]
[1742743671757,8.27293714,132.74,132.71,0.0571554]
[1742743672460,7.5354,132.73,132.71,0.0571554]
[1742743673061,15.75660523,132.72,132.71,0.0571554]
[1742743683270,7.536,132.72,132.71,0.0571554]
[1742743687070,15.75660523,132.72,132.71,0.0571554]
[1742743688774,7.536,132.72,132.71,0.0571554]
[1742743693778,8.22060523,132.72,132.63,248.64]
[1742743693978,8.22060523,132.7,132.66,8.22060523]
[1742743694279,8.22060523,132.69,132.65,42.94020523]
[1742743694471,7.5386,132.68,132.65,42.94020523]
[1742743694671,8.22060523,132.71,132.67,8.22060523]
[1742743694872,0.05498922,132.68,132.67,8.22060523]
[1742743698179,0.05498922,132.68,132.67,15.75940523]
[1742743698774,8.22060523,132.74,132.7,7.5371]
[1742743698969,8.22060523,132.74,132.7,42.87770523]
[1742743699372,7.5357,132.73,132.7,42.87770523]
[1742743699878,7.59305597,132.73,132.7,42.93044969]
[1742743701285,7.5361,132.72,132.7,35.39334969]
[1742743701779,7.5361,132.72,132.7,27.17274446]
[1742743702779,7.5365,132.71,132.7,27.17274446]
[1742743704077,15.75710523,132.71,132.7,0.05274446]
[1742743709284,15.75710523,132.71,132.67,256.88060523]
[1742743709285,8.22060523,132.71,132.67,256.88060523]
[1742743710184,7.5374,132.7,132.67,15.75910523]
[1742743710386,0.05114742,132.7,132.68,0.05085472]
[1742743710587,0.05114742,132.7,132.68,8.27145995]
[1742743710884,0.05114742,132.7,132.68,15.80935995]
[1742743712491,7.58834742,132.7,132.68,15.80935995]
[1742743712890,0.05114742,132.7,132.69,7.5377]
[1742743713589,0.05114742,132.7,132.69,34.6377]
[1742743713791,0.05114742,132.7,132.69,42.85830523]
[1742743722496,0.05114742,132.7,132.69,34.6377]
[1742743722689,0.05114742,132.7,132.69,42.85830523]
[1742743737105,2.015,132.77,132.69,35.32060523]
[1742743737302,8.22060523,132.77,132.72,8.22060523]
[1742743737606,8.22060523,132.77,132.74,7.5345]
[1742743737799,7.5334,132.77,132.74,8.22060523]
[1742743738000,7.5334,132.77,132.74,8.27482759]
[1742743738207,7.59138944,132.77,132.74,15.80942759]
[1742743739006,7.5338,132.76,132.74,0.05422236]
[1742743740398,7.5338,132.76,132.74,7.58902236]
[1742743741704,7.5338,132.76,132.74,0.05422236]
[1742743743503,7.5343,132.75,132.74,0.05422236]
[1742743746204,15.75490523,132.75,132.74,0.05422236]
[1742743752309,15.75490523,132.75,132.74,2.236e-05]
[1742743752606,7.5376,132.7,132.67,283.88060523]
[1742743752807,8.22060523,132.71,132.67,283.88060523]
[1742743753008,7.5381,132.69,132.67,283.88060523]
[1742743753603,7.5381,132.69,132.67,283.93249121]
[1742743753798,7.59045276,132.69,132.67,283.93249121]
[1742743754409,7.5382,132.68,132.67,248.71188598]
[1742743756408,15.81095799,132.69,132.67,248.71188598]
[1742743756709,7.59035276,132.69,132.67,248.71188598]
[1742743759909,0.05235276,132.69,132.68,7.5382]
[1742743760605,0.05235276,132.69,132.68,15.75880523]
[1742743763306,0.05235276,132.69,132.68,19.98820523]
[1742743763499,7.5357,132.73,132.7,7.5369]
[1742743763702,7.5357,132.73,132.71,27.02]
[1742743764506,7.536,132.72,132.71,27.0729985]
[1742743768412,15.75660523,132.72,132.71,0.0529985]
[1742743769308,7.5382,132.68,132.67,283.90060523]
[1742743770708,7.5382,132.68,132.67,248.66]
[1742743776115,7.58832465,132.69,132.67,248.66]
[1742743776514,7.58832465,132.69,132.67,275.68]
[1742743776710,7.58832465,132.69,132.67,283.2187]
[1742743779320,0.05042465,132.69,132.67,283.2187]
[1742743779518,0.05042465,132.69,132.67,291.43930523]
[1742743779920,0.05042465,132.69,132.67,42.77930523]
[1742743780116,7.5388,132.67,132.66,0.04810351]
[1742743780515,0.05042465,132.69,132.66,8.26870874]
[1742743780715,7.5386,132.68,132.66,8.26870874]
[1742743782021,7.5388,132.67,132.66,8.26870874]
[1742743782319,0.05042465,132.69,132.66,8.26870874]
[1742743783621,7.5385,132.68,132.66,8.26870874]
[1742743783812,0.05042465,132.69,132.66,8.26870874]
[1742743784011,7.5388,132.67,132.66,0.04810351]
[1742743785320,15.75940523,132.67,132.66,0.04810351]
[1742743785826,7.5388,132.67,132.66,0.04810351]
[1742743790423,8.22060523,132.68,132.66,0.04810351]
[1742743790424,15.75910523,132.68,132.66,0.04810351]
[1742743794621,0.05042465,132.69,132.66,8.26870874]
[1742743794820,0.05042465,132.69,132.67,35.24060523]
[1742743795020,0.05042465,132.69,132.68,8.22060523]
[1742743795228,0.05042465,132.69,132.68,15.75880523]
[1742743795432,26.21606815,132.73,132.68,8.22060523]